{"text_format":"1","workbook":"xlsx","n_sheets":5,"sheets":["1.Marée","2.Logbook","3.Tonnage bord","4.Statistiques","5.Définitions"],"not_rendered":{"charts":0,"images":1,"macros":1,"external_links":2,"defined_names":26,"comments":1,"pivot_tables":0},"unopened":[],"bounds":{"document_bytes":16777216,"sheet_cells":100000,"rows_first":2000,"rows_last":500,"rows_between":2000,"halvings":0,"cell_chars":16384,"cell_head_chars":4096},"cells_cut":0,"cells_raw":0,"read":"whole","date_system":"1900"}

{"sheet":"1.Marée","index":0,"n_rows":75,"n_cols":46,"rows_kept":75,"cut":false,"hidden":false,"merged":[[19,5,19,6],[20,5,20,6],[13,5,13,6],[14,5,14,6],[15,5,15,6],[17,5,17,6],[18,5,18,6],[12,5,12,6],[1,5,1,6],[2,5,2,6],[3,5,3,6],[4,5,4,6],[5,5,5,6],[6,5,6,6],[7,5,7,6],[9,3,9,6],[10,3,10,6]]}
[null,null,null,null,null,null,null,null,null,null,null,"Coche","Type DCP","Type bouées","Action DCP","Liste ZEE"]
[null,"Navire",null,null,":","VIA AVENIR",null,null,null,null,null,"x","N","D+","MISE A L'EAU DCP ECO","Eaux internationales"]
[null,"Pavillon",null,null,":","Français",null,null,null,null,null,"X","A","M3I","CHANGEMENT DE  BALISE","Angola",null,null,"en cas de déchargement partiel"]
[null,"Numéro d'immatriculation",null,null,":","CC 752564",null,null,null,null,null,null,null,"M4I","VISITE AVEC PECHE","Bénin",null,null,"merci de noter ci-dessous le ROB  (Reste à bord)  "]
[null,"Port d'immatriculation",null,null,":","Concarneau",null,null,null,null,null,null,null,null,"VISITE SANS PECHE","Cameroun",null,null,"Albacore +10"]
[null,"Signal d'appel international",null,null,":",228128000,null,null,null,null,null,null,null,null,"RETRAIT","Cap Vert",null,null,"Albacore -10"]
[null,"Numéro OMI",null,null,":",8812186,null,null,null,null,null,null,null,null,"PERTE / FIN TRANSMISSION BALISE","Chagos",null,null,"Listao"]
[null,"Numéro CFR",null,null,":","FRA 000752564",null,null,null,null,null,null,null,null,null,"Comores",null,null,"Patudo +10"]
[null,null,null,null,null,null,null,null,null,null,null,null,null,null,null,"Congo Brazzaville",null,null,"Patudo -10"]
[null,"Patron          :",null,"Jaffrezic",null,null,null,null,null,null,null,null,null,null,null,"Côte d'Ivoire",null,null,"Germon"]
[null,"Marée          :",null,"XX",null,null,null,null,null,null,null,null,null,null,null,"Gabon"]
[null,null,null,null,null,null,null,null,null,null,null,null,null,null,null,"Gambie"]
[null,"Départ       -",null,"Port",":","Abidjan",null,null,null,null,null,null,null,null,null,"Ghana"]
[null,null,null,"Date",":","2019-11-24",null,null,null,null,null,null,null,null,null,"Glorieuses"]
[null,null,null,"Heure",":","16:00:00",null,null,null,null,null,null,null,null,null,"Guinée Bissau"]
[null,null,null,"Loch",":",0,null,null,null,null,null,null,null,null,null,"Guinée Conakry"]
[null,null,null,null,null,null,null,null,null,null,null,null,null,null,null,"Guinée Equatoriale"]
[null,"Arrivée       -",null,"Port",":","Abidjan",null,null,null,null,null,null,null,null,null,"Ile Maurice"]
[null,null,null,"Date",":","2020-01-06",null,null,null,null,null,null,null,null,null,"Iles Eparses"]
[null,null,null,"Heure",":","15:35:00",null,null,null,null,null,null,null,null,null,"Indonésie"]
[null,null,null,"Loch",":",8618,null,null,null,null,null,null,null,null,null,"Kenya"]
[null,null,null,null,null,null,null,null,null,null,null,null,null,null,null,"La Réunion"]
[null,null,null,"Jours de mer pendant la marée.",null,null,null,{"$f":"F21-F16","v":8618},null,"milles parcourus",null,null,null,null,null,"Libéria"]
[null,null,null,null,null,null,null,null,null,null,null,null,null,null,null,"Madagascar"]
[null,"Nombre de coups de filets dans la marée ",null,null,null,null,null,"   Portants ",":",{"$f":"SUM('2.Logbook'!I31:I532)","v":22},null,null,null,null,null,"Maldives"]
[null,null,null,null,null,null,null,"   Nuls ",":",{"$f":"SUM('2.Logbook'!J31:J532)","v":1},null,null,null,null,null,"Maurice"]
[null,null,null,null,null,null,null,"   Total ",":",{"$f":"J25+J26","v":23},null,null,null,null,null,"Mauritanie"]
[null,null,null,null,null,null,null,null,null,null,null,null,null,null,null,"Mayotte"]
[null,"Albacore",":",{"$f":"SUM('2.Logbook'!M31:M532)+SUM('2.Logbook'!O31:O532)","v":15},null,null,"Autres",{"$f":"SUM('2.Logbook'!Z31:Z532)","v":45},null,null,null,null,null,null,null,"Mozambique"]
[null,"Listao",":",{"$f":"SUM('2.Logbook'!Q31:Q532)","v":402},null,null,"Rejets",{"$f":"SUM('2.Logbook'!AC31:AC532)","v":4},null,null,null,null,null,null,null,"Namibie"]
[null,"Patudo",":",{"$f":"SUM('2.Logbook'!S31:S532)+SUM('2.Logbook'!U31:U532)","v":7},null,null,null,null,null,null,null,null,null,null,null,"Nigéria"]
[null,"Germon",":",{"$f":"SUM('2.Logbook'!W31:W532)","v":0},null,null,null,null,null,null,null,null,null,null,null,"Oman"]
[null,null,null,null,null,null,null,null,null,null,null,null,null,null,null,"Sao Tome e Principe"]
[null,"Total",":",{"$f":"SUM(D29:D32)","v":424},null,null,null,null,null,null,null,null,null,null,null,"Sénégal"]
[null,null,null,null,null,null,null,null,null,null,null,null,null,null,null,"Seychelles"]
[]
[]
[]
[]
[]
[]
[null,null,null,null,null,null,null,null,null,null,null,null,null,null,null,"Zaïre"]
[]
[]
[]
[]
[null,"17:00:00","02°06'N","009°17'W",null,28.5,220,8,null,null,null,null,null,null,null,null,null,null,null,null,null,null,null,null,null,null,null,null,null,null,null,null,null,null,null,null,null,null,null,null,null,null,null,null,null,585757]
["2019-12-09","06:40:00","02°02 N","009°18 W",null,28.7,225,8,1,null,null,null,null,null,2,null,21,null,null,null,1,null,null,"Banane baliste",null,2,null,null,null,null,1,1,null,null,null,null,null,null,null,null,null,null,null,585757]
["2019-12-09","18:00:00","01°34'N","007°56'W","Libéria",28.7,220,9,null,null,null,null,null,null,null,null,null,null,null,null,null,null,null,null,null,null,null,null,null,null,null,null,null,null,null,null,null,null,null,null,null,null,null,null,null,585666]
["2019-12-10","13:32:00","01°25 N","006°47W",null,28.4,220,10,1,null,null,null,null,null,null,null,30,null,null,null,null,null,null,"Baliste",null,2,null,null,null,null,1,1,null,null,null,null,null,null,null,null,null,null,null,568535]
["2019-12-11","07:10:00","01°31 N","008°23 W",null,28.4,220,10,1,null,null,null,1,null,null,null,24,null,null,null,null,null,null,"Baliste chinchard",null,2,null,null,null,null,1,1,null,null,null,null,null,null,null,null,null,null,null,585666]
["2019-12-12","07:36:00","01°59 N","012°02 W"]
[]
[]
[]
[null,null,null,null,null,null,null,null,1]
[]
[]
["2019-12-19","14;30","02°36'N","011°57'W","Eaux internationales",29,170,5]
["2019-12-20","06:56:00","02°30 N","013°525 W",null,28.7,170,8,1,null,null,null,null,null,2,null,9,null,null,null,1,null,null,"Banane chinchar",null,2,null,null,null,null,1,1,null,null,null,null,null,null,null,null,null,null,null,null,null,585255]
["2019-12-21","07:11:00","02°42N","011°45 W"]
["2019-12-22","15:50:00","01°31'N","007°31'W","Libéria",29.3,170,5]
["2019-12-23","18:00:00","02°41'S","007°23'W","Eaux internationales",27.9,170,15]
["2019-12-24","18:00:00","01°53'S","007°44'W","Eaux internationales",27.9,170,15]
["2019-12-25","11:45:00","01°26'S","007°35'W","Eaux internationales",27.9,170,10]
["2019-12-26","16:55:00","03°17'N","005°08'W",null,30.3,150,5]
["2019-12-27","07:12:00","03°29 N","005°11 W",null,29.8,140,5,1,null,null,null,null,null,2,null,36,null,null,null,null,null,null,"Banane baliste",null,2,null,null,null,null,1,1,null,null,null,null,null,null,null,null,null,null,null,null,null,585211]
["2019-12-27","10:40:00","03°36 N","005°05 W",null,29.8,140,5,1,null,null,null,null,null,null,null,34,null,null,null,null,null,null,"Ravil",null,1,null,null,null,null,1,1,null,null,null,null,null,null,null,null,null,null,null,null,null,579700]
["2019-12-28","06:35:00","02°43 N","005°16 W",null,29.8,140,5,1,null,null,null,null,null,1,null,28,null,null,null,1,null,null,"Banane baliste",null,2,null,null,null,null,1,1,null,null,null,null,null,null,null,null,null,null,null,null,null,585228]
["2019-12-28","12:07:00","03°04 N","005°20 W",null,29.8,140,5,1,null,null,null,null,null,1,null,10,null,null,null,1,null,null,"Banane chinchar",null,3,null,null,null,null,1,1]
["2019-12-29","06:53:00","03°15 N","005°12 W",null,29.8,140,5,1,null,null,null,null,null,1,null,10,null,null,null,1,null,null,"Esp banane",null,2,"cnt",null,1,null,1,1,null,null,null,null,null,null,null,null,null,null,null,null,null,585162]
["2019-12-29","10:16:00","03°19 N","005°10 W",null,29.8,140,5,1,null,null,null,null,null,null,null,10,null,null,null,null,null,null,"Baliste banane",null,2,"rru",null,1,null,1,1,null,null,null,null,null,null,null,null,null,null,null,null,null,585211]
["2019-12-30","06:52:00","03°53 N","005°10 W",null,29.8,140,5,1,null,null,null,null,null,null,null,7,null,null,null,null,null,null,"Banane",null,3,"Banane",null,2,null,1,1,null,null,null,null,null,null,null,null,null,null,null,null,null,568209]
["2019-12-31","08:16:00","01°50 N","006°12 W",null,29.8,140,5,1,null,null,null,null,null,null,null,52,null,null,null,null,null,null,"Chinchar",null,1,null,null,null,null,1,1,null,null,null,null,null,null,null,null,null,null,null,null,null,579686]
["2020-12-31","15:09:00","02°16 N","006°05 W",null,29.8,140,5,1,null,null,null,null,null,null,null,10,null,null,null,null,null,null,"Ravil",null,1,null,null,null,null,1,1]

{"sheet":"2.Logbook","index":1,"n_rows":81,"n_cols":47,"rows_kept":81,"cut":false,"hidden":false,"merged":[[0,0,4,10],[5,0,5,5],[0,46,4,46],[3,29,3,35],[5,29,5,35],[3,36,3,45],[2,22,5,28],[0,29,1,45],[0,22,1,28],[0,11,4,21],[5,11,5,17],[5,18,5,21],[5,6,5,10],[2,29,2,35],[4,29,4,35],[2,36,2,45],[4,36,4,45],[5,36,5,45],[8,36,8,45],[22,23,23,25],[12,46,13,46],[14,46,15,46],[16,46,17,46],[18,46,29,46],[18,44,19,45],[24,39,29,39],[24,40,29,40],[12,36,13,40],[14,36,15,40],[16,36,17,40],[18,41,21,41],[26,41,29,41],[22,41,25,41],[18,39,19,40],[20,39,21,40],[22,39,23,40],[18,37,21,37],[22,37,25,37],[26,37,29,37],[22,26,23,28],[20,44,21,45],[22,44,23,45],[6,0,6,5],[7,0,7,5],[8,0,8,5],[10,0,10,10],[9,0,9,45],[11,0,11,46],[6,6,6,10],[7,6,7,10],[8,6,8,10],[5,46,8,46],[10,11,10,28],[6,11,6,17],[6,18,6,21],[7,11,7,17],[7,18,7,21],[8,11,8,17],[8,18,8,21],[6,22,8,24],[6,25,8,28],[6,29,6,35],[7,29,7,35],[8,29,8,35],[6,36,6,45],[7,36,7,45],[18,32,29,32],[18,33,29,33],[18,30,29,30],[22,11,23,14],[22,15,23,16],[22,17,23,20],[22,21,23,22],[18,26,19,28],[20,11,21,14],[20,15,21,16],[20,17,21,20],[20,21,21,22],[20,23,21,25],[20,26,21,28],[24,44,25,44],[26,44,27,44],[28,44,29,44],[24,45,25,45],[26,45,27,45],[28,45,29,45],[12,41,13,45],[14,41,15,45],[26,42,27,42],[28,42,29,42],[24,43,25,43],[26,43,27,43],[28,43,29,43],[16,41,17,45],[18,42,19,43],[20,42,21,43],[22,42,23,43],[12,0,17,0],[18,0,23,0],[24,0,29,0],[12,1,17,1],[18,1,23,1],[24,1,29,1],[12,2,17,2],[18,2,23,2],[12,11,13,28],[14,11,15,28],[12,8,13,10],[14,8,15,10],[16,8,17,10],[18,8,29,8],[18,9,29,9],[18,10,29,10],[12,5,17,5],[18,5,23,5],[24,5,29,5],[12,6,13,7],[16,11,17,28],[18,11,19,14],[18,15,19,16],[18,17,19,20],[24,2,29,2],[12,3,17,3],[18,3,23,3],[24,3,29,3],[12,4,17,4],[18,4,23,4],[24,4,29,4],[24,11,25,14],[26,21,26,22],[26,11,26,12],[26,13,26,14],[26,15,26,16],[26,17,26,18],[26,19,26,20],[24,17,25,20],[24,21,25,22],[18,21,19,22],[24,15,25,16],[12,29,13,35],[14,29,15,35],[16,29,17,35],[18,29,29,29],[14,6,15,7],[16,6,17,7],[18,6,29,6],[18,7,29,7],[10,29,10,46],[26,23,26,25],[26,26,26,28],[24,23,25,25],[24,26,25,28],[24,42,25,42],[18,34,29,34],[18,35,29,35],[18,36,21,36],[22,36,25,36],[26,36,29,36],[18,23,19,25],[18,38,21,38],[22,38,25,38],[26,38,29,38],[18,31,29,31]]}
["DEPART / SALIDA / DEPARTURE",null,null,null,null,null,null,null,null,null,null,"ARRIVEE / LLEGAGA / ARRIVAL",null,null,null,null,null,null,null,null,null,null,"PATRON / PATRON / MASTER",null,null,null,null,null,null,"NAVIRE / BARCO / VESSEL",null,null,null,null,null,null,null,null,null,null,null,null,null,null,null,null,"FEUILLE / HOJA / SHEET"]
[]
[null,null,null,null,null,null,null,null,null,null,null,null,null,null,null,null,null,null,null,null,null,null,{"$f":"Patron","v":"Jaffrezic"},null,null,null,null,null,null,"Vessel",null,null,null,null,null,null,{"$f":"Navire","v":"VIA AVENIR"}]
[null,null,null,null,null,null,null,null,null,null,null,null,null,null,null,null,null,null,null,null,null,null,null,null,null,null,null,null,null,"Flag",null,null,null,null,null,null,{"$f":"Pavillon","v":"Français"}]
[null,null,null,null,null,null,null,null,null,null,null,null,null,null,null,null,null,null,null,null,null,null,null,null,null,null,null,null,null,"Immatriculation number",null,null,null,null,null,null,{"$f":"Immatriculation","v":"CC 752564"}]
["PORT / PUERTO / PORT",null,null,null,null,null,{"$f":"Port_départ","v":"Abidjan"},null,null,null,null,"PORT / PUERTO / PORT",null,null,null,null,null,null,{"$f":"Port_retour","v":"Abidjan"},null,null,null,null,null,null,null,null,null,null,"Immatriculation port",null,null,null,null,null,null,{"$f":"Port_immatriculation","v":"Concarneau"}]
["DATE / FECHA / DATE",null,null,null,null,null,{"$f":"Date_départ","v":"2019-11-24"},null,null,null,null,"DATE / FECHA / DATE",null,null,null,null,null,null,{"$f":"Date_retour","v":"2020-01-06"},null,null,null,"MAREE",null,null,{"$f":"Marée","v":"XX"},null,null,null,"International call sign",null,null,null,null,null,null,{"$f":"Appel_international","v":228128000}]
["HEURE / HORA / HOUR",null,null,null,null,null,{"$f":"Heure_départ","v":"16:00:00"},null,null,null,null,"HEURE / HORA / HOUR",null,null,null,null,null,null,{"$f":"Heure_retour","v":"15:35:00"},null,null,null,null,null,null,null,null,null,null,"OMI number",null,null,null,null,null,null,{"$f":"OMI","v":8812186}]
["LOCH / CORREDA / LOCH",null,null,null,null,null,{"$f":"Loch_départ","v":0},null,null,null,null,"LOCH / CORREDA / LOCH",null,null,null,null,null,null,{"$f":"Loch_retour","v":8618},null,null,null,null,null,null,null,null,null,null,"CFR number",null,null,null,null,null,null,{"$f":"CFR","v":"FRA 000752564"}]
[]
[null,null,null,null,null,null,null,null,null,null,null,"Une calée, un objet flottant ou une bouée par ligne"]
[]
["DATE","HEURE","LATITUDE\nchaque calée ou à midi","LONGITUDE\nchaque calée ou à midi","ZEE","T°C \nmer","VENT",null,"CALEE",null,null,"CAPTURE ESTIMEE (en tonnes)",null,null,null,null,null,null,null,null,null,null,null,null,null,null,null,null,null,"ASSOCIATION",null,null,null,null,null,null,"OBJET FLOTTANT",null,null,null,null,"BOUEE INSTRUMENTEE",null,null,null,null,"COMMENTAIRES"]
[]
[null,null,null,null,null,null,"VIENTO",null,"LANCE",null,null,"ESTIMATION DE LA CAPTURA (en toneladas)",null,null,null,null,null,null,null,null,null,null,null,null,null,null,null,null,null,"ASSOCIACION",null,null,null,null,null,null,"OBJETO",null,null,null,null,"BOYA",null,null,null,null,"COMMENTARIOS"]
[]
[null,null,null,null,null,null,"WIND",null,"FISHING SET",null,null,"ESTIMATED CATCH (metric tons)",null,null,null,null,null,null,null,null,null,null,null,null,null,null,null,null,null,"ASSOCIATION",null,null,null,null,null,null,"FLOATING OBJECT",null,null,null,null,"INSTRUMENTED BUOY",null,null,null,null,"COMMENTS"]
[]
["FECHA","HORA","LATITUDE\ncada lance o mediada","LONGITUD\ncada lance o mediada","ZEE","T°C \nmar","Direction / Dirreccion / Direction\nDegrés / Grados / Degrees","Vitesse / Velocidad / Speed\nNœuds / Nudos / Knots","Portante / Positivo / Successful","Nulle / Nullo / Nil","Type de calée / Lance typo / Fishing set type",1,null,null,null,2,null,3,null,null,null,4,null,5,null,null,6,null,null,"Banc Libre / Banco Libre / Free School","Objet flottant / Objeto / FOB","Balise / Balisa / Beacon","Baliseur / Barco de appoyo\n Support vessel","Requin baleine / Tiburon ballena \nWhale shark","Baleine / Ballena / Whale","Oiseaux / Aves / Birds","ACTIVITE \nSUR L'OBJET","TYPE D'OBJET","TYPE DE DCP\n DERIVANT","RISQUE DE MAILLAGE",null,"ACTIVITE \nSUR LA BOUEE","BOUEE DÉJÀ PRESENTE",null,"BOUEE DEPLOYEE",null,"Problèmes divers\nDétails sur les prises accessoires\nTaille du banc\nAutres associations\nAutres remarques"]
[]
[null,null,null,null,null,null,null,null,null,null,null,"ALBACORE",null,null,null,"LISTAO",null,"PATUDO",null,null,null,"GERMON",null,"AUTRES ESPECES",null,null,"REJETS",null,null,null,null,null,null,null,null,null,null,null,null,null,null,null,"BOYA ANTIGUA",null,"BOYA NUEVA"]
[]
[null,null,null,null,null,null,null,null,null,null,null,"RABIL",null,null,null,"LISTADO",null,"PATUDO",null,null,null,"ALBACORA",null,"OTRAS ESPECIES",null,null,"DESCARTES",null,null,null,null,null,null,null,null,null,"ACTIVIDAD SOBRE EL OBJETO","TIPO DE OBJETO","TIPO DE DCP","ENTANGLING RISK",null,"ACTIVIDAD SOBRE LA BOYA","BUOY ALREADY ON THE FOB",null,"DEPLOYED BUOY"]
[]
["DATE","TIME","LATITUDE\neach set or at midday","LONGITUD\neach set or at midday","EEZ","T°C \nsea",null,null,null,null,null,"YELLOWFIN",null,null,null,"SKIPJACK",null,"BIGEYE",null,null,null,"ALBACORE",null,"OTHER SPECIES",null,null,"DISCARDS",null,null,null,null,null,null,null,null,null,null,null,null,"En surface \nParte surperficial\nSurface","Sous la surface\nParte sumergida\nUnderwater",null,"TYPE","NUMERO","TYPE","NUMERO"]
[]
[null,null,null,null,null,null,null,null,null,null,null,"YFT +10",null,"YFT-10",null,"SKJ",null,"BET +10",null,"BET - 10",null,"ALB",null,"OTH",null,null,"DSC",null,null,null,null,null,null,null,null,null,"FOB ACTIVITY","FOB TYPE","DFAD TYPE",null,null,"BUOY \nACTIVITY","TIPO","NUMERO","TIPO","NUMERO"]
[null,null,null,null,null,null,null,null,null,null,null,"Taille","Capture","Taille","Capture","Taille","Capture","Taille","Capture","Taille","Capture","Taille","Capture","Espèce","Taille","Capture","Espèce","Taille","Capture"]
[null,null,null,null,null,null,null,null,null,null,null,"Tailla","Captura","Tailla","Captura","Tailla","Captura","Tailla","Captura","Tailla","Captura","Tailla","Captura","Especie","Tailla","Captura","Especie","Tailla","Captura",null,null,null,null,null,null,null,null,null,null,null,null,null,"TYPE","ID","TYPE","ID"]
[null,null,null,null,null,null,null,null,null,null,null,"Size","Catch","Size","Catch","Size",null,"Size","Catch","Size","Catch","Size","Catch","Species","Size","Catch","Species","Size","Catch"]
["2019-11-25","10:50:00","02°46N","006°53 W","Côte d'Ivoire",28,200,5]
["2019-11-25","14:45:00","02°29 N","007°37 W","Libéria",28,200,5,null,null,null,null,null,null,null,null,null,null,null,null,null,null,null,null,null,null,null,null,null,null,null,null,null,null,null,null,"Mise à l'eau","DCP dérivant","DCP français émergé bambou",null,null,"Mise à l'eau",null,null,"M3i+",579755]
["2019-11-26","11:35:00","02°14' N","012°04'W","Eaux internationales",28,180,5,null,null,null,null,null,null,null,null,null,null,null,null,null,null,null,null,null,null,null,null,null,null,null,null,null,null,null,null,null,"DCP dérivant","DCP coréen",null,null,"Transfert","M3i+",579628]
["27/011/2019","06:59:00","02°03 N","015°17 W","eaux internationales",28,160,5,1,null,"Banc Objet",null,null,null,null,"1,8 - 3,4 kg",12,null,null,null,null,null,null,"Baliste",null,2,null,null,null,null,1,1,null,null,null,null,null,"DCP dérivant","DCP espagnol émergé plastique",null,null,"Visite","M3i+",579599]
["2019-11-28","16:50:00","02°22' N","019°36'W","Eaux internationales",28,160,5,null,null,null,null,null,null,null,null,null,null,null,null,null,null,null,null,null,null,null,null,null,null,null,null,null,null,null,null,null,"DCP dérivant","DCP espagnol émergé plastique",null,null,"Transfert",null,null,"M3i+",568585]
["2019-11-29","10:50:00","02°01'N","020°16'W","eaux internationales",28,170,null,null,null,null,null,null,null,null,null,null,null,null,null,null,null,null,null,null,null,null,null,null,null,null,null,null,null,null,null,null,"DCP dérivant","DCP espagnol émergé métal",null,null,"Transfert",null,null,"M3i+",534149]
["2019-11-30","15:43:00","02°04N","020°06 W","eaux internationales",27.8,170,8,1,null,"Banc Objet",null,null,null,null,"1,8 - 3,4 kg",40,null,null,null,null,null,null,"Baliste",null,2,null,null,null,null,1,1,null,null,null,null,null,"DCP dérivant","DCP espagnol émergé métal",null,null,"Transfert","M3i+",579734,"M3i+"]
["2019-12-01","10:30:00","02°22N","019°49","eaux internationales",27.8,170,8,1,null,"Banc Objet",null,null,null,null,"< 1,8 kg",14,null,null,null,null,null,null,"Baliste banane",null,3,null,null,null,null,1,1,null,null,null,null,null,"DCP dérivant","DCP coréen",null,null,"Visite","M3i+",568527,"M3i+"]
["2019-12-01","15:20:00","02°43N","020°10 W","eaux internationales",27.8,170,8,1,null,"Banc Objet",null,null,"3,4 - 10 kg",2,"1,8 - 3,4 kg",17,null,null,"3,4 - 10 kg",1,null,null,"Baliste",null,1,null,null,null,null,1,1,null,null,null,null,null,"DCP dérivant","DCP espagnol émergé métal",null,null,"Visite","M3i+",568585]
["2019-12-02","12:20:00","02°28'N ","020°10'W","eaux internationales",28.6,170,8,null,null,null,null,null,null,null,null,null,null,null,null,null,null,null,null,null,null,null,null,null,null,null,null,null,null,null,null,null,"DCP dérivant","DCP espagnol émergé métal",null,null,"Transfert",null,null,"M3i+",579670]
["2019-12-03","07:28:00","03°18 N","017°01 W","eaux internationales",29.2,140,5,1,null,"Banc Objet",null,null,"1,8 - 3,4 kg",1,"< 1,8 kg",4,null,null,null,null,null,null,"chinchar baliste",null,2,null,null,null,null,1,1,null,null,null,null,null,"DCP dérivant","DCP coréen",null,null,"Visite"]
["2019-12-03","13:40:00","03°04'N","017°46'W","Eaux internationales",29.5,150,5,null,null,null,null,null,null,null,null,null,null,null,null,null,null,null,null,null,null,null,null,null,null,null,null,null,null,null,null,null,"DCP dérivant","DCP espagnol émergé métal",null,null,"Transfert",null,null,"M3i+",585753]
["2019-12-04","07:38:00","02°43 N","021°03 W","Eaux internationales",27.5,150,5,null,1,null,null,null,null,null,null,null,null,null,null,null,null,null,null,null,null,null,null,null,null,null,null,null,null,null,null,null,"DCP dérivant","DCP espagnol émergé métal",null,null,null,null,null,"M3i+",579734,"Déchiré Filet"]
["2019-12-05","06:00:00","02°58 N","021°12 W","Eaux internationales",null,null,null,null,null,null,null,null,null,null,null,null,null,null,null,null,null,null,null,null,null,null,null,null,null,null,null,null,null,null,null,null,null,null,null,null,null,null,null,null,null,"Réparation filet"]
["2019-12-06","13:10:00","02°56'N","016°52'W","Eaux internationales",29,150,5,null,null,null,null,null,null,null,null,null,null,null,null,null,null,null,null,null,null,null,null,null,null,null,null,null,null,null,null,null,"DCP dérivant","DCP coréen",null,null,"Transfert",null,null,"M3i+",585750]
["2019-12-07","12:45:00","01°54'N","011°31'W","Eaux internationales",29,150,5,null,null,null,null,null,null,null,null,null,null,null,null,null,null,null,null,null,null,null,null,null,null,null,null,null,null,null,null,null,"DCP dérivant","DCP espagnol émergé bambou",null,null,"Transfert",null,null,"M3i+",585674]
["2019-12-08","17:00:00","02°06'N","009°17'W","Libéria",28.5,220,8,null,null,null,null,null,null,null,null,null,null,null,null,null,null,null,null,null,null,null,null,null,null,null,null,null,null,null,null,null,"DCP dérivant","DCP espagnol émergé bambou",null,null,"Transfert",null,null,"M3i+",585757]
["2019-12-09","06:40:00","02°02 N","009°18 W","Libéria",28.7,225,8,1,null,null,null,null,"1,8 - 3,4 kg",2,null,21,null,null,"1,8 - 3,4 kg",1,null,null,"Banane baliste",null,2,null,null,null,null,1,1,null,null,null,null,null,"DCP dérivant","DCP espagnol émergé métal",null,null,"Visite","M3i+",585757]
["2019-12-09","18:00:00","01°34'N","007°56'W","Libéria",28.7,220,9,null,null,null,null,null,null,null,null,null,null,null,null,null,null,null,null,null,null,null,null,null,null,null,null,null,null,null,null,null,"DCP dérivant","DCP coréen",null,null,"Transfert",null,null,"M3i+",585666]
["2019-12-10","13:32:00","01°25 N","006°47W","Côte d'Ivoire",28.4,220,10,1,null,null,null,null,null,null,"1,8 - 3,4 kg",30,null,null,null,null,null,null,"Baliste",null,2,null,null,null,null,1,1,null,null,null,null,null,"DCP dérivant","DCP espagnol émergé bambou-métal",null,null,"Visite","M3i+",568535]
["2019-12-11","07:10:00","01°31 N","008°23 W","Libéria",28.4,220,10,1,null,null,"20 - 40 kg",1,null,null,"< 1,8 kg",24,null,null,null,null,null,null,"Baliste chinchard",null,2,null,null,null,null,1,1,null,null,null,null,null,"DCP dérivant","DCP coréen",null,null,"Visite","M3i+",585666]
["2019-12-12","07:36:00","01°59 N","012°02 W","Eaux internationales",28.9,175,12,1,null,null,null,null,null,null,"< 1,8 kg",11,null,null,"1,8 - 3,4 kg",1,null,null,"Baliste chinchard",null,2,null,null,null,null,1,1,null,null,null,null,null,"DCP dérivant","DCP coréen",null,null,"Visite","M3i+",585674]
["2019-12-13","17:30:00","01°25'S","012)07'W","Eaux internationales",27.7,175,10,null,null,null,null,null,null,null,null,null,null,null,null,null,null,null,null,null,null,null,null,null,null,null,null,null,null,null,null,null,"DCP dérivant","DCP espagnol émergé métal",null,null,"Transfert",null,null,"M3i+",585739]
["2019-12-14","13:15:00","01°25'S","012°50'W","Eaux internationales",27.4,130,15]
["2019-12-15","09:51:00","01°41 N","011°52 W","Eaux internationales",28.7,170,20,1,null,null,null,null,"1,8 - 3,4 kg",2,"1,8 - 3,4 kg",14,null,null,null,null,null,null,"Banane chinchar",null,2,null,null,null,null,1,1,null,null,null,null,null,"DCP dérivant","DCP coréen",null,null,null,null,null,"M3i+",585624]
["2019-12-16","08:24:00","01°57 N","013°04 W","Eaux internationales",28.7,170,12,1,null,null,null,null,null,null,"< 1,8 kg",4,null,null,null,null,null,null,"Banane chinchar",null,4,null,null,null,null,1,1,null,null,null,null,null,"DCP dérivant","DCP espagnol émergé plastique"]
["2019-12-17","14:30:00","03°16'N","013°40'W","eaux internationales",29.5,170,5]
["2019-12-18"," 06:50","03°29 N","013°51W","eaux internationales",29,170,5,null,null,null,null,null,null,null,null,null,null,null,null,null,null,null,null,null,null,null,null,null,null,null,null,null,null,null,null,null,null,null,null,null,null,null,null,null,null,"Chaviré Poche Baliste"]
["2019-12-19","14;30","02°36'N","011°57'W","Eaux internationales",29,170,5]
["2019-12-20","06:56:00","02°30 N","013°525 W","Eaux internationales",28.7,170,8,1,null,null,null,null,"1,8 - 3,4 kg",2,"1,8 - 3,4 kg",9,null,null,"1,8 - 3,4 kg",1,null,null,"Banane chinchar",null,2,null,null,null,null,1,1,null,null,null,null,null,"DCP dérivant","DCP espagnol émergé métal",null,null,null,null,null,"M3i+",585255]
["2019-12-21","07:11:00","02°42N","011°45 W","Eaux internationales",28.5,170,8,1,null,null,null,null,null,null,"< 1,8 kg",5,null,null,null,null,null,null,"Baliste chinchar",null,2,null,null,null,null,1,1,null,null,null,null,null,"DCP dérivant","DCP coréen"]
["2019-12-22","15:50:00","01°31'N","007°31'W","Libéria",29.3,170,5]
["2019-12-23","18:00:00","02°41'S","007°23'W","Eaux internationales",27.9,170,15]
["2019-12-24","18:00:00","01°53'S","007°44'W","Eaux internationales",27.9,170,15]
["2019-12-25","11:45:00","01°26'S","007°35'W","Eaux internationales",27.9,170,10]
["2019-12-26","16:55:00","03°17'N","005°08'W","Côte d'Ivoire",30.3,150,5]
["2019-12-27","07:12:00","03°29 N","005°11 W","Côte d'Ivoire",29.8,140,5,1,null,null,null,null,"1,8 - 3,4 kg",2,"1,8 - 3,4 kg",36,null,null,null,null,null,null,"Banane baliste",null,2,null,null,null,null,1,1,null,null,null,null,null,"DCP dérivant","DCP espagnol émergé métal",null,null,null,null,null,"M3i+",585211]
["2019-12-27","10:40:00","03°36 N","005°05 W","Côte d'Ivoire",29.8,140,5,1,null,null,null,null,null,null,"1,8 - 3,4 kg",34,null,null,null,null,null,null,"Ravil",null,1,null,null,null,null,1,1,null,null,null,null,null,"DCP dérivant","DCP espagnol émergé métal",null,null,null,null,null,"M3i+",579700]
["2019-12-28","06:35:00","02°43 N","005°16 W","Côte d'Ivoire",29.8,140,5,1,null,null,null,null,"1,8 - 3,4 kg",1,"1,8 - 3,4 kg",28,null,null,"1,8 - 3,4 kg",1,null,null,"Banane baliste",null,2,null,null,null,null,1,1,null,null,null,null,null,"DCP dérivant","DCP espagnol émergé métal",null,null,null,null,null,"M3i+",585228]
["2019-12-28","12:07:00","03°04 N","005°20 W","Côte d'Ivoire",29.8,140,5,1,null,null,null,null,"1,8 - 3,4 kg",1,"1,8 - 3,4 kg",10,null,null,"1,8 - 3,4 kg",1,null,null,"Banane chinchar",null,3,null,null,null,null,1,1,null,null,null,null,null,"DCP dérivant","DCP français émergé bambou"]
["2019-12-29","06:53:00","03°15 N","005°12 W","Côte d'Ivoire",29.8,140,5,1,null,null,null,null,"1,8 - 3,4 kg",1,"1,8 - 3,4 kg",10,null,null,"1,8 - 3,4 kg",1,null,null,"Esp banane",null,2,"cnt",null,1,null,1,1,null,null,null,null,null,"DCP dérivant","DCP coréen",null,null,null,null,null,"M3i+",585162]
["2019-12-29","10:16:00","03°19 N","005°10 W","Côte d'Ivoire",29.8,140,5,1,null,null,null,null,null,null,"< 1,8 kg",10,null,null,null,null,null,null,"Baliste banane",null,2,"rru",null,1,null,1,1,null,null,null,null,null,"DCP dérivant","DCP espagnol émergé métal",null,null,null,null,null,"M3i+",585211]
["2019-12-30","06:52:00","03°53 N","005°10 W","Côte d'Ivoire",29.8,140,5,1,null,null,null,null,null,null,"1,8 - 3,4 kg",7,null,null,null,null,null,null,"Banane",null,3,"Banane",null,2,null,1,1,null,null,null,null,null,"DCP dérivant","DCP coréen",null,null,null,null,null,"M3i+",568209]
["2019-12-31","08:16:00","01°50 N","006°12 W","Côte d'Ivoire",29.8,140,5,1,null,null,null,null,null,null,"1,8 - 3,4 kg",52,null,null,null,null,null,null,"Chinchar",null,1,null,null,null,null,1,1,null,null,null,null,null,"DCP dérivant","DCP coréen",null,null,null,null,null,"M3i+",579686]
["2020-12-31","15:09:00","02°16 N","006°05 W","Côte d'Ivoire",29.8,140,5,1,null,null,null,null,null,null,"< 1,8 kg",10,null,null,null,null,null,null,"Ravil",null,1,null,null,null,null,1,1,null,null,null,null,null,"DCP dérivant","DCP coréen"]
["2020-01-01","11:30:00","01°19'N","005°50'W","eaux internationales",29,140,5]
["2020-01-02","11:40:00","01°49'S","004°08'W","Eaux internationales",28.2,140,10]
["2020-01-03","17:50:00","03°04'S","001°27'W","Eaux internationales",28.5,140,10]
["2020-01-04","17:50:00","00°55S","001°49'W","Eaux internationales",28.8,140,10]
["2020-01-05","11:00:00","01°23N","002°16'W","Eaux internationales",29,140,5]
["2020-01-06","11:30:00","04°48'N","003°58'W","Côte d'Ivoire",29.3,140,5]

{"sheet":"3.Tonnage bord","index":2,"n_rows":15,"n_cols":5,"rows_kept":15,"cut":false,"hidden":false,"merged":[[12,1,12,4],[13,1,13,4]]}
[]
[null,"Information pêche"]
[null,{"$f":"Navire","v":"VIA AVENIR"},null,"Tonnage le :",{"$f":"TODAY()","v":"2020-01-06"}]
[null,"Albacore +10",":",{"$f":"SUM('2.Logbook'!$M$31:$M$532)+'1.Marée'!$T$5","v":1}]
[null,"Albacore -10",null,{"$f":"SUM('2.Logbook'!$O$31:$O$532)+'1.Marée'!$T$6","v":14}]
[null,"Listao",":",{"$f":"SUM('2.Logbook'!$Q$31:$Q$532)+'1.Marée'!$T$7","v":402}]
[null,"Patudo -10",":",{"$f":"SUM('2.Logbook'!$S$31:$S$532)+'1.Marée'!$T$8","v":0}]
[null,"Patudo +10",null,{"$f":"SUM('2.Logbook'!$U$31:$U$532)+'1.Marée'!$T$9","v":7}]
[null,"Germon",":",{"$f":"SUM('2.Logbook'!$W$31:$W$532)+'1.Marée'!$T$10","v":0}]
[]
[null,"Total",":",{"$f":"SUM(D4:D9)","v":424}]
[]
[null,"1- ouvrir un nouveau mail dans votre messagerie"]
[null,"2- coller dans le corps du texte"]
[null,"3- envoyer votre email à armement"]

{"sheet":"4.Statistiques","index":3,"n_rows":42,"n_cols":4,"rows_kept":42,"cut":false,"hidden":false,"merged":[[1,1,1,3],[2,1,2,3]]}
[]
[null,{"$f":"Navire","v":"VIA AVENIR"}]
[null,"Statistiques  Captures"]
[null,"N° Marée",{"$f":"Marée","v":"XX"}]
[null,"Du :",{"$f":"Date_départ","v":"2019-11-24"}]
[null,"Au :",{"$f":"Date_retour","v":"2020-01-06"}]
[]
[null,null,"Sur banc libre (en t)"]
[null,"YF+10",{"$f":"SUMIFS('2.Logbook'!$M$31:$M$532,'2.Logbook'!$K$31:$K$532,\"Banc Libre\")","v":0},{"$f":"IF($C$36=0,\"\",C9/$C$36)","v":0}]
[null,"YF-10",{"$f":"SUMIFS('2.Logbook'!$O$31:$O$532,'2.Logbook'!$K$31:$K$532,\"Banc Libre\")","v":0},{"$f":"IF(C37=0,\"\",C10/C37)","v":0}]
[null,"SKJ",{"$f":"SUMIFS('2.Logbook'!$Q$31:$Q$532,'2.Logbook'!$K$31:$K$532,\"Banc Libre\")","v":0},{"$f":"IF(C38=0,\"\",C11/C38)","v":0}]
[null,"BE+10",{"$f":"SUMIFS('2.Logbook'!$S$31:$S$532,'2.Logbook'!$K$31:$K$532,\"Banc Libre\")","v":0},{"$f":"IF(C39=0,\"\",C12/C39)","v":""}]
[null,"BE-10",{"$f":"SUMIFS('2.Logbook'!$U$31:$U$532,'2.Logbook'!$K$31:$K$532,\"Banc Libre\")","v":0},{"$f":"IF(C40=0,\"\",C13/C40)","v":0}]
[null,"Germon",{"$f":"SUMIFS('2.Logbook'!$W$31:$W$532,'2.Logbook'!$K$31:$K$532,\"Banc Libre\")","v":0},{"$f":"IF(C41=0,\"\",C14/C41)","v":""}]
[]
[]
[null,null,"Sur DCP (en t)"]
[null,"YF+10",{"$f":"SUMIFS('2.Logbook'!$M$31:$M$532,'2.Logbook'!$K$31:$K$532,\"Banc Objet\",'2.Logbook'!$AL$31:$AL$532,{\"DCP dérivant\";\"DCP ancré\"}  )","v":0},{"$f":"IF($C$36=0,\"\",C18/$C$36)","v":0}]
[null,"YF-10",{"$f":"SUMIFS('2.Logbook'!$O$31:$O$532,'2.Logbook'!$K$31:$K$532,\"Banc Objet\",'2.Logbook'!$AL$31:$AL$532,{\"DCP dérivant\";\"DCP ancré\"}  )","v":3},{"$f":"IF($C$37=0,\"\",C19/$C$37)","v":3}]
[null,"SKJ",{"$f":"SUMIFS('2.Logbook'!$Q$31:Q$532,'2.Logbook'!$K$31:$K$532,\"Banc Objet\",'2.Logbook'!$AL$31:$AL$532,{\"DCP dérivant\";\"DCP ancré\"}  )","v":87},{"$f":"IF($C$38=0,\"\",C20/$C$38)","v":0.21641791044776118}]
[null,"BE+10",{"$f":"SUMIFS('2.Logbook'!$S$31:$S$532,'2.Logbook'!$K$31:$K$532,\"Banc Objet\",'2.Logbook'!$AL$31:$AL$532,{\"DCP dérivant\";\"DCP ancré\"}  )","v":0},{"$f":"IF($C$39=0,\"\",C21/$C$39)","v":""}]
[null,"BE-10",{"$f":"SUMIFS('2.Logbook'!$U$31:$U$532,'2.Logbook'!$K$31:$K$532,\"Banc Objet\",'2.Logbook'!$AL$31:$AL$532,{\"DCP dérivant\";\"DCP ancré\"}  )","v":1},{"$f":"IF($C$40=0,\"\",C22/$C$40)","v":0.14285714285714285}]
[null,"Germon",{"$f":"SUMIFS('2.Logbook'!$W$31:$W$532,'2.Logbook'!$K$31:$K$532,\"Banc Objet\",'2.Logbook'!$AL$31:$AL$532,{\"DCP dérivant\";\"DCP ancré\"}  )","v":0},{"$f":"IF($C$41=0,\"\",C23/$C$41)","v":""}]
[]
[]
[null,null,"Sur épave (en t)"]
[null,"YF+10",{"$f":"SUMIFS('2.Logbook'!$M$31:$M$532,'2.Logbook'!$K$31:$K$532,\"Banc Objet\",'2.Logbook'!$AL$31:$AL$532, \"<>\" & {\"DCP dérivant\";\"DCP ancré\"}  )","v":0},{"$f":"IF($C$36=0,\"\",C27/$C$36)","v":0}]
[null,"YF-10",{"$f":"SUMIFS('2.Logbook'!$O$31:$O$532,'2.Logbook'!$K$31:$K$532,\"Banc Objet\",'2.Logbook'!$AL$31:$AL$532,\"<>\" &{\"DCP dérivant\";\"DCP ancré\"}  )","v":0},{"$f":"IF($C$37=0,\"\",C28/$C$37)","v":0}]
[null,"SKJ",{"$f":"SUMIFS('2.Logbook'!$Q$31:Q$532,'2.Logbook'!$K$31:$K$532,\"Banc Objet\",'2.Logbook'!$AL$31:$AL$532,\"<>\" &{\"DCP dérivant\";\"DCP ancré\"}  )","v":0},{"$f":"IF($C$38=0,\"\",C29/$C$38)","v":0}]
[null,"BE+10",{"$f":"SUMIFS('2.Logbook'!$S$31:$S$532,'2.Logbook'!$K$31:$K$532,\"Banc Objet\",'2.Logbook'!$AL$31:$AL$532,\"<>\" &{\"DCP dérivant\";\"DCP ancré\"}  )","v":0},{"$f":"IF($C$39=0,\"\",C30/$C$39)","v":""}]
[null,"BE-10",{"$f":"SUMIFS('2.Logbook'!$U$31:$U$532,'2.Logbook'!$K$31:$K$532,\"Banc Objet\",'2.Logbook'!$AL$31:$AL$532,\"<>\" &{\"DCP dérivant\";\"DCP ancré\"}  )","v":0},{"$f":"IF($C$40=0,\"\",C31/$C$40)","v":0}]
[null,"Germon",{"$f":"SUMIFS('2.Logbook'!$W$31:$W$532,'2.Logbook'!$K$31:$K$532,\"Banc Objet\",'2.Logbook'!$AL$31:$AL$532,\"<>\" &{\"DCP dérivant\";\"DCP ancré\"}  )","v":0},{"$f":"IF($C$41=0,\"\",C32/$C$41)","v":""}]
[]
[]
[null,null,"Totaux   (en T)"]
[null,"YF+10",{"$f":"SUM('2.Logbook'!$O$31:$O$532)","v":14}]
[null,"YF-10",{"$f":"SUM('2.Logbook'!$M$31:$M$532)","v":1}]
[null,"SKJ",{"$f":"SUM('2.Logbook'!$Q$31:$Q$532)","v":402}]
[null,"BE+10",{"$f":"SUM('2.Logbook'!$S$31:$S$532)","v":0}]
[null,"BE-10",{"$f":"SUM('2.Logbook'!$U$31:$U$532)","v":7}]
[null,"Germon",{"$f":"SUM('2.Logbook'!$W$31:$W$532)","v":0}]
[null,"Total",{"$f":"SUM(C36:C41)","v":424}]

{"sheet":"5.Définitions","index":4,"n_rows":80,"n_cols":2,"rows_kept":80,"cut":false,"hidden":false,"merged":[]}
["TAILLE DES CAPTURES"]
["ALBACORE, PATUDO, GERMON","Description"]
["< 1,8 kg","Poisson de moins de 1,8 kg"]
["1,8 - 3,4 kg","Poisson de 1,8 à 3,4 kg"]
["3,4 - 10 kg","Poisson de 3,4 à 10 kg"]
["10 - 20 kg","Poisson de 10 à 20 kg"]
["20 - 40 kg","Poisson de 20 à 40 kg"]
["40 - 60 kg","Poisson de 40 à 60 kg"]
["> 60 kg","Poisson de plus de 60 kg"]
[]
["LISTAO","Description"]
["< 1,8 kg","Poisson de moins de 1,8 kg"]
["1,8 - 3,4 kg","Poisson de 1,8 à 3,4 kg"]
["> 3,4 kg","Poisson de plus de 3,4 kg"]
[]
["OBJETS FLOTTANTS"]
["Types d'activités sur les objets flottants","Description"]
["Mise à l'eau","Déploiement d'un nouveau DCP"]
["Visite sans pêche","Visite d'un DCP ou d'une épave déjà en mer et qui n'est pas suivie d'une calée"]
["Visite avec pêche","Visite d'un DCP ou d'une épave déjà en mer suivie d'une calée"]
["Renforcement","Déploiement d'un DCP sur un autre DCP ou sur une épave pour améliorer sa flottabilité "]
["Retrait","Récupération en mer d'un DCP ou d'une épave"]
["Perte","Action involontaire. Se produit par exemple si un autre bateau récupère l'objet, si la bouée arrête d'émettre ou si l'objet coule."]
["Fin d'utilisation","Action volontaire. Se produit si le bateau, son baliseur ou l'armement désactive la bouée. L'abandon d'un DCP en mer sans balise est interdit."]
[]
["Types d'objets flottants","Description / Exemple"]
["DCP ancré","Objet construit et ancré par des pêcheurs pour attirer du poisson"]
["DCP dérivant","Objet dérivant construit et déployé par des pêcheurs pour attirer du poisson"]
["Epave artificielle liée à la pêche","Par exemple, un morceau de filet, une aussière, une épave de bateau, un baliseur"]
["Epave artificielle liée à d'autres activités humaines","Par exemple, un bidon, un touret de câble, une bouée océanique"]
["Epave naturelle d'origine animale","Par exemple, une charogne de baleine ou de requin baleine"]
["Epave naturelle d'origine végétale","Par exemple, un tas de paille, un amas d'algues ou des branches d'arbre"]
[]
["Types de DCP","Description"]
["DCP français émergé bambou","Radeau type français, avec un cadre 100% bambou émergé"]
["DCP français émergé métal","Radeau type français, avec un cadre 100% métal émergé"]
["DCP français émergé bambou-métal","Radeau type français, avec un cadre mixte bambou métal"]
["DCP français furtif","Radeau type français, sous la surface"]
["DCP français cage","Radeau-cage type français, sous la surface"]
["DCP espagnol émergé bambou","Radeau type espagnol, avec un cadre 100% bambou émergé"]
["DCP espagnol émergé métal","Radeau type espagnol, avec un cadre 100% métal émergé"]
["DCP espagnol émergé bambou-métal","Radeau type espagnol, avec un cadre mixte bambou métal"]
["DCP espagnol émergé plastique","Radeau type espagnol, avec un cadre 100% plastique émergé"]
["DCP espagnol furtif","Radeau type espagnol, avec un cadre mixte bambou métal"]
["DCP espagnol cage","Radeau type espagnol, sous la surface"]
["DCP coréen","Radeau type coréen"]
["Autre DCP dérivant","A décrire dans les commentaires"]
["Autre objet","A décrire dans les commentaires"]
[]
["Risque de maillage","Description"]
["Pas de mailles","Présence de mailles en surface (risque pour les tortues) ou sous la surface (risque pour les requins). L'utilisation de DCP avec mailles est interdite par la CTOI."]
["< 6, 5 cm","Présence de mailles de 6,5 cm ou moins. Faible risque de maillage."]
["> 6,5 cm","Présence de mailles de plus de 6,5 cm. Fort risque de maillage."]
["Mailles de taille inconnue","La taille des mailles n'a pas pu être estimée"]
["Non observable","La présence de mailles n'a pas pu être observée"]
[]
[]
[]
["BOUEES"]
["Types d'activités sur les bouées","Description"]
["Mise à l'eau","Déploiement d'un DCP neuf avec une bouée / déploiement d'une bouée sur un objet dérivant sans bouée"]
["Visite","Visite d'un DCP ou d'une épave équipée d'une bouée  / visite d'une bouée dérivant seule"]
["Transfert","Changement de bouée"]
["Retrait","Récupération en mer d'une bouée.  L'abandon d'un DCP en mer sans balise est interdit."]
["Perte","Action involontaire. Se produit par exemple si un autre bateau récupère l'objet et éteint la bouée, si la bouée arrête d'émettre ou si la bouée coule."]
["Fin d'utilisation","Action volontaire. Se produit si le bateau, son baliseur ou l'armement désactive la bouée. L'abandon d'un DCP en mer sans balise est interdit."]
[]
["Types de bouées","Description"]
["M3i","Marine Instrument M3i"]
["M3i+","Marine Instrument M3i+"]
["M4i","Marine Instrument M4i"]
["Marine Instruments modèle inconnu","Bouée Marine Instruments dont le modèle n'a pas été observé ou n'est pas présent dans la liste précédente"]
["Ortbit","Thalos Ortbit"]
["Thalos modèle inconnu","Bouée Thalos dont le modèle n'a pas été observé ou n'est pas présent dans la liste précédente"]
["SLX+","Satlink SLX+"]
["ISD+","Satlink ISD+"]
["Autre Satlink","Autre modèle Satlink (non utilisé par la flotte française)"]
["Satlink modèle inconnu","Bouée Satlink dont le modèle n'a pas été observé"]
["Marque et modèle inconnus","Bouée pour laquelle ni la marque, ni le modèle n'ont pu être observés"]
["Pas de bouée","Objet dérivant sans bouée"]